[Event "183 Stay Safe Play From Home series"]
[Site "T#646406Emanuel Laske"]
[Date "2020.05.28"]
[Round "6"]
[White "Tobo Rubirosa"]
[Black "Kongle"]
[Result "1-0"]
[WhiteElo "1665"]
[BlackElo "1826"]
[Annotator "NA RC"]
[PlyCount "79"]
[EventDate "2020.05.28"]
[EventType "swiss (blitz)"]
[TimeControl "180"]

1. Nf3 {[%emt 0:00:03]} Nf6 {[%emt 0:00:05]} 2. d4 {[%emt 0:00:01]} b6 {[%emt 0:00:01]} 3. g3 {[%emt 0:00:02]} Bb7 {[%emt 0:00:01]} 4. Bg2 {[%emt 0:00:01]} d6 {[%emt 0:00:01]} 5. O-O {[%emt 0:00:01]} g6 {[%emt 0:00:01]} 6. c4 {[%emt 0:00:01]} Bg7 {[%emt 0:00:01]} 7. Nc3 {[%emt 0:00:01]} e6 {[%emt 0:00:01]} 8. Qc2 {[%emt 0:00:03]} Nbd7 {[%emt 0:00:01]} 9. e4 {[%emt 0:00:01]} O-O {[%emt 0:00:02]} 10. Re1 {[%emt 0:00:04]} e5 {[%emt 0:00:03]} 11. h3 {[%emt 0:00:04]} Re8 {[%emt 0:00:02]} 12. d5 {[%emt 0:00:04]} a5 {[%emt 0:00:04]} 13. Be3 {[%emt 0:00:02]} Nc5 {[%emt 0:00:04]} 14. a3 {[%emt 0:00:04]} Bc8 {[%emt 0:00:08]} 15. b4 {[%emt 0:00:03]} axb4 {[%emt 0:00:02]} 16. axb4 {[%emt 0:00:02]} Rxa1 {[%emt 0:00:04]} 17. Rxa1 {[%emt 0:00:01]} Na6 {[%emt 0:00:31]} 18. c5 {[%emt 0:00:11]} Nxb4 {[%emt 0:00:04]} 19. Qb3 {[%emt 0:00:06]} bxc5 {[%emt 0:00:01]} 20. Ra8 {[%emt 0:00:09]} Qe7 {[%emt 0:00:04]} 21. Ra7 {[%emt 0:00:04]} Qd7 {[%emt 0:00:12]} 22. Bf1 {[%emt 0:00:04]} Qd8 {[%emt 0:00:04]} 23. Nb5 {[%emt 0:00:03]} Nxe4 {[%emt 0:00:11]} 24. Nxc7 {[%emt 0:00:07]} Re7 {[%emt 0:00:03]} 25. Nb5 {[%emt 0:00:11]} Rxa7 {[%emt 0:00:02]} 26. Nxa7 {[%emt 0:00:01]} f5 {[%emt 0:00:06]} 27. Nc6 {[%emt 0:00:04]} Qf8 {[%emt 0:00:10]} 28. Nxb4 {[%emt 0:00:03]} cxb4 {[%emt 0:00:01]} 29. Qxb4 {[%emt 0:00:01]} h6 {[%emt 0:00:19]} 30. Bb6 {[%emt 0:00:12]} g5 {[%emt 0:00:05]} 31. Bc7 {[%emt 0:00:03]} Bd7 {[%emt 0:00:03]} 32. Nd2 {[%emt 0:00:09]} Nxd2 {[%emt 0:00:03]} 33. Qxd2 {[%emt 0:00:02]} f4 {[%emt 0:00:00]} 34. Qd3 {[%emt 0:00:07]} Qa8 {[%emt 0:00:05]} 35. Bxd6 {[%emt 0:00:03]} Qa4 {[%emt 0:00:02]} 36. Qg6 {[%emt 0:00:10]} fxg3 {[%emt 0:00:04]} 37. fxg3 {[%emt 0:00:02]} Qd4+ {[%emt 0:00:03]} 38. Kh2 {[%emt 0:00:01]} Qxd5 {[%emt 0:00:01]} 39. Be7 {[%emt 0:00:03]} Qd2+ {[%emt 0:00:02]} 40. Bg2 {[%emt 0:00:01] Time (Lag: Av=0.80s, max=2.8s)} 1-0